Cogmind - Beta 10.2 @@@ ROGUE MODE // 2021.10.07 @ 20:13:22 Player: OR-2NL Result: Destroyed by B-75 Beast with Heavy Plasma Cannon Performance ------------- Evolutions (3) 1500 Regions Visited (14) 2800 Robots Destroyed (206) 1030 Value Destroyed (5202) 5202 Prototype IDs (16) 320 Alien Tech Used (0) 0 Bonus (754) 754 TOTAL SCORE: 11606 Bonus ------- High Alert Combat Kills 366 Follower Combat Kills 133 Met Imprinter 300 Friendly Fire -45 Cogmind --------- Core Integrity 0/700 Matter 300/300 Energy 495/500 System Corruption 0% Temperature Cool (12) Movement Flying (40) Location -6/Proximity Caves Parts ------- > --- POWER (1) -------- (None) > --- PROPULSION (3) --- Biomechanical Wings > --- UTILITY (7) ------ High-capacity Battery Advanced Signal Interpreter Makeshift Hacking Suite Advanced Hacking Suite > --- WEAPON (2) ------- CR-A16's Pointy Stick > --- INVENTORY (4) ---- Advanced System Shield Advanced Plasma Cannon Coil Gun Mini Grenade Launcher Peak State ------------ > --- POWER ------------ Light Nuclear Core > --- PROPULSION ------- Improved VTOL Module Improved VTOL Module Biomechanical Wings > --- UTILITY ---------- Medium Storage Unit Experimental Sensor Array Advanced Signal Interpreter Makeshift Hacking Suite Advanced Hacking Suite Advanced Hacking Suite Advanced System Shield > --- WEAPON ----------- Mini Grenade Launcher Phasing Sabre > --- INVENTORY -------- Biomechanical Wings Biomechanical Wings High-capacity Battery Light Armor Plating Advanced Hacking Suite Advanced System Shield Component Analysis Suite Advanced Plasma Cannon [Rating: 60] Favorites ----------- Power Cooled Ion Engine Engine Cooled Ion Engine Power Core Light Nuclear Core Propulsion Compact Wheel Treads Light Treads Wheel Compact Wheel Flight Unit Improved VTOL Module Utility High-capacity Storage Unit Device Experimental Sensor Array Storage High-capacity Storage Unit Processor Advanced Signal Interpreter Hackware Hacking Suite Protection Hardened Light Armor Plating Weapon Advanced Beam Cannon Energy Gun Advanced Beam Rifle Energy Cannon Advanced Beam Cannon Ballistic Gun Autogun Launcher Mini Grenade Launcher Special Weapon Plasma Cutter Impact Weapon Powered Hammer Slashing Weapon Chainsword Piercing Weapon Spear Special Melee Weapon Improved Datajack Build | -11 -10 -10 -9 -9 -9 -8 -8 -7 -7 -7 -7 -7 -7 -6 ------- Run | Scr Mat Min Mat Min Exi Min Mat Fac Was Fac Low Low Zio Pro Slots Evolved 6 | . . . 2 . . . 2 2 . . . . . . Power . | . . . . . . . . . . . . . . . Propulsion 1 | . . . 1 . . . . . . . . . . . Utility 5 | . . . 1 . . . 2 2 . . . . . . Weapon . | . . . . . . . . . . . . . . . Parts Attached 416 | 8 31 12 97 22 2 40 121 29 . 28 3 10 8 5 Power 19 | 1 1 . 5 . . 2 6 . . 1 . . . 3 Engine 14 | 1 1 . 5 . . 2 3 . . . . . . 2 Core 5 | . . . . . . . 3 . . 1 . . . 1 Reactor . | . . . . . . . . . . . . . . . Propulsion 220 | 4 17 10 62 21 . 30 67 . . 6 . . 2 1 Treads 111 | 2 8 4 35 11 . 15 36 . . . . . . . Leg . | . . . . . . . . . . . . . . . Wheel 96 | 2 9 6 27 10 . 15 27 . . . . . . . Hover . | . . . . . . . . . . . . . . . Flight 13 | . . . . . . . 4 . . 6 . . 2 1 Utility 78 | 1 5 . 8 . 2 . 13 18 . 16 2 8 4 1 Device 27 | . . . . . . . 3 8 . 9 1 4 1 1 Storage 21 | 1 4 . 8 . 2 . 2 1 . 2 . . 1 . Processor 3 | . 1 . . . . . . 2 . . . . . . Hackware 14 | . . . . . . . 4 5 . 4 . 1 . . Protection 13 | . . . . . . . 4 2 . 1 1 3 2 . Artifact . | . . . . . . . . . . . . . . . Weapon 99 | 2 8 2 22 1 . 8 35 11 . 5 1 2 2 . Energy Gun 3 | . 1 . . . . . 2 . . . . . . . Energy Cannon 10 | . . . 4 . . 2 2 . . 2 . . . . Ballistic Gun 35 | 2 4 1 9 1 . 3 15 . . . . . . . Ballistic Cannon . | . . . . . . . . . . . . . . . Launcher 12 | . . . 4 . . 2 4 1 . . 1 . . . Special Weapon 16 | . 2 1 2 . . 1 4 5 . 1 . . . . Impact Weapon 2 | . . . . . . . 2 . . . . . . . Slashing Weapon 5 | . 1 . . . . . 1 . . . . 2 1 . Piercing Weapon 7 | . . . . . . . . 4 . 2 . . 1 . Special Melee Weapon 9 | . . . 3 . . . 5 1 . . . . . . Unidentified Prototypes 5 | . . . 3 . . . 2 . . . . . . . Parts Lost 33 | . 1 . 2 . . 2 13 . . 1 1 . 6 7 Power 6 | . . . . . . 1 2 . . . . . 1 2 Propulsion 11 | . . . 1 . . . 5 . . . . . 2 3 Utility 7 | . . . . . . . 2 . . 1 . . 2 2 Weapon 9 | . 1 . 1 . . 1 4 . . . 1 . 1 . Highest Loss Streak 7 | . 1 . 1 . . 1 5 . . 1 1 . 6 7 Average Slot Usage (%) 99 | . 99 100 99 100 100 99 99 99 100 99 95 99 91 90 Engine 8 | . 14 14 11 11 11 10 5 . . . . . . 6 Core 2 | . . . . . . . 3 7 7 6 7 7 5 . Treads 8 | . 1 1 12 14 11 16 12 . . . . . . . Wheel 14 | . 26 26 20 18 22 16 8 . . . . . . . Flight 6 | . . . . . . . 5 23 23 22 23 23 22 22 Device 1 | . . . . . . . 2 6 7 6 7 6 4 6 Storage 25 | . 26 28 33 33 33 33 30 6 7 6 7 7 7 14 Processor 1 | . 1 . . . . . . 6 7 7 7 7 7 7 Hackware 7 | . . . . . . . 7 30 30 30 30 30 28 22 Protection 1 | . . . . . . . 4 . . . . . . . Energy Cannon 4 | . . . 11 11 11 8 3 . . . . . . . Ballistic Gun 9 | . 20 27 7 10 11 11 8 . . . . . . . Special Weapon 2 | . 1 . 3 . . 2 2 5 7 7 . . . . Piercing Weapon 1 | . . . . . . . . 7 7 6 7 1 . 7 Naked Turns . | . . . . . . . . . . . . . . . Heaviest Build 150 | 12 43 43 111 111 111 113 150 18 17 19 19 20 20 21 Greatest Support 67 | 40 40 40 60 66 32 66 67 18 18 22 20 20 22 23 Greatest Overweight (x) 9 | . 1 1 3 3 3 7 9 . . . . . . . Average Overweight (x) 1 | . . 1 2 2 3 2 1 . . . . . . . Largest Inventory Capacity 40 | 6 16 16 28 28 28 28 40 8 8 8 8 8 8 8 Average Capacity 21 | 5 14 16 26 28 28 28 30 7 8 7 8 8 8 7 Most Carried 36 | 4 16 16 28 28 28 28 36 8 8 8 8 8 8 8 Average Carried 20 | 1 12 15 25 28 27 27 28 7 7 6 7 7 7 7 Final Capacity 28 | 6 16 16 28 28 28 28 8 8 8 8 8 8 8 4 Final Carried 28 | 4 16 16 28 28 28 28 8 8 8 8 8 8 5 4 Class Distribution -------------------- 56% | Hauler-Mutant 24% | Hacker-Sprinter 17% | Mutant Dominant Class ---------------- Mutant | -10/Materials Mutant | -10/Mines Hauler-Mutant | -9/Materials Hauler-Mutant | -9/Mines Hauler-Mutant | -9/Exiles Hauler-Mutant | -8/Mines Hauler-Mutant | -8/Materials Hacker-Sprinter | -7/Factory Hacker-Sprinter | -7/Waste Hacker-Sprinter | -7/Factory Hacker-Sprinter | -7/Lower Caves Hacker-Sprinter | -7/Lower Caves Hacker-Sprinter | -7/Zion Hacker-Sprinter | -6/Proximity Caves Resources | -11 -10 -10 -9 -9 -9 -8 -8 -7 -7 -7 -7 -7 -7 -6 ----------- Run | Scr Mat Min Mat Min Exi Min Mat Fac Was Fac Low Low Zio Pro Matter Collected 6527 | 278 488 547 1344 284 . 684 1939 295 . 279 31 278 20 60 Remotely . | . . . . . . . . . . . . . . . Salvage Created 7959 | 74 488 415 1754 439 . 844 2832 394 . 307 . 167 . 245 Parts 459 | 2 35 16 133 19 . 44 156 21 . 21 . 10 . 2 Haulers Intercepted 11 | . 1 . 6 . . . 4 . . . . . . . Recyclers Shooed 6 | . 1 . 3 . . . 1 1 . . . . . . Parts Field Recycled . | . . . . . . . . . . . . . . . Retrieved Matter . | . . . . . . . . . . . . . . . Parts Self-Destructed 9 | . . . . . . . . . . . . 9 . . Prevented . | . . . . . . . . . . . . . . . Kills | -11 -10 -10 -9 -9 -9 -8 -8 -7 -7 -7 -7 -7 -7 -6 ------- Run | Scr Mat Min Mat Min Exi Min Mat Fac Was Fac Low Low Zio Pro Combat Hostiles Destroyed 139 | . 13 4 36 9 . 17 48 4 . . . 8 . . Melee 2 | . . . . . . . . 2 . . . . . . Guns 56 | . 13 4 9 6 . 3 21 . . . . . . . Cannons 36 | . . . 13 3 . 8 12 . . . . . . . AOE 43 | . . . 14 . . 6 13 2 . . . 8 . . Classes Destroyed 16 | 1 5 2 4 1 . 1 1 1 . . . . . . Worker 10 | . . 1 2 . . 3 3 . . 1 . . . . Builder 3 | . . . 2 . . . 1 . . . . . . . Tunneler 2 | . . . 2 . . . . . . . . . . . Hauler 11 | . 1 . 6 . . . 4 . . . . . . . Recycler 21 | 1 . 3 3 . . 3 5 3 . 3 . . . . Operator 5 | . 1 1 1 . . . 2 . . . . . . . Watcher 15 | . 2 . 4 . . . 5 1 . 3 . . . . Swarmer 48 | . 6 . 15 . . 6 11 2 . . . 8 . . Grunt 54 | . 7 2 10 6 . 6 23 . . . . . . . Brawler 6 | . . . 1 1 . 3 1 . . . . . . . Duelist 1 | . . . . 1 . . . . . . . . . . Protector 2 | . . . . . . . 2 . . . . . . . Sentry 21 | . . . 10 1 . . 10 . . . . . . . Demolisher 2 | . . 2 . . . . . . . . . . . . Hunter 3 | . . . . . . 2 1 . . . . . . . Programmer 2 | . . . . . . . . 2 . . . . . . Packrat 3 | . . . . . . . . . . . . . . 3 Best Kill Streak 14 | 1 6 2 6 2 . 5 14 2 . 2 . 4 . . Combat Bots Only 9 | . 5 2 5 2 . 5 9 2 . . . 4 . . Max Kills in Single Turn 4 | 1 1 1 4 1 . 3 3 2 . 1 . 3 . 1 Gunslinging . | . . . . . . . . . . . . . . . Exploded 4 | . . . 4 . . 3 2 2 . . . 3 . . Melee 1 | . . . . . . . . 1 . . . . . . Uniques/NPCs Destroyed . | . . . . . . . . . . . . . . . Combat | -11 -10 -10 -9 -9 -9 -8 -8 -7 -7 -7 -7 -7 -7 -6 -------- Run | Scr Mat Min Mat Min Exi Min Mat Fac Was Fac Low Low Zio Pro Damage Taken 7208 | . 497 192 830 374 . 759 2969 126 . 108 15 15 493 830 Core 1425 | . 97 46 150 73 . 67 272 36 . 10 . . 128 546 Absorbed by Shields . | . . . . . . . . . . . . . . . Core Remaining (%) 54 | 100 . 42 . . . 27 50 . . . . . . . Volleys Fired 478 | 2 62 21 107 16 1 55 201 2 . 6 . 5 . . Largest 2 | 2 2 2 2 2 1 2 2 1 . 1 . 1 . . Hottest 140 | 40 140 46 136 93 68 93 100 30 . 98 . 30 . . Shots Fired 834 | 4 106 41 179 32 1 104 354 2 . 6 . 5 . . Gun 516 | 4 91 40 74 16 . 59 232 . . . . . . . Cannon 219 | . . . 74 16 1 41 81 . . 6 . . . . Launcher 29 | . . . 8 . . 3 12 1 . . . 5 . . Special 70 | . 15 1 23 . . 1 29 1 . . . . . . Kinetic 476 | 4 77 40 74 16 . 59 206 . . . . . . . Thermal 314 | . 15 1 97 16 1 42 136 . . 6 . . . . Explosive 20 | . . . 8 . . 3 3 1 . . . 5 . . Electromagnetic 23 | . 14 . . . . . 9 . . . . . . . Robot Hit Streak 36 | 2 8 21 26 10 . 13 36 2 . . . . . . Robot Miss Streak 6 | 1 5 2 4 1 . 2 6 . . . . . . . Penetration Max . | . . . . . . . . . . . . . . . Secondary Targets 1 | . . . . . . . 1 . . . . . . . Max Gunslinging Chain 1 | . . . . . . . 1 . . . . . . . Shots Hit Robots 326 | 2 36 29 57 8 . 32 127 13 . 9 . 3 1 9 Core Hits 299 | 2 25 11 69 12 . 33 115 8 . 7 . 13 . 4 Critical Hits 35 | . 1 . 10 . . 8 16 . . . . . . . Critical Kills 16 | . 1 . 3 . . 3 9 . . . . . . . Critical Parts Destroyed 18 | . . . 7 . . 5 6 . . . . . . . Melee Attacks 175 | . 4 . 6 . . . 24 45 . 70 4 3 2 17 Impact 1 | . . . . . . . 1 . . . . . . . Slashing 21 | . 4 . . . . . 15 . . . . . 2 . Piercing 137 | . . . . . . . . 43 . 70 4 3 . 17 Sneak Attacks 27 | . . . 6 . . . 7 5 . 5 . . 1 3 Combat Hostiles . | . . . . . . . . . . . . . . . Follow-up Attacks . | . . . . . . . . . . . . . . . Damage Inflicted 15058 | 28 711 461 3296 448 . 1844 5744 689 . 716 . 606 . 515 Guns 5886 | 28 665 451 969 257 . 729 2787 . . . . . . . Cannons 3229 | . . . 1038 191 . 658 1342 . . . . . . . Explosions 3343 | . . . 1075 . . 446 1274 127 . . . 421 . . Melee 2143 | . . . . . . . 165 562 . 716 . 185 . 515 Ramming . | . . . . . . . . . . . . . . . Kinetic 5411 | 28 570 451 969 257 . 729 2407 . . . . . . . Thermal 4234 | . 46 10 1252 191 . 669 2066 . . . . . . . Explosive 2478 | . . . 1075 . . 446 409 127 . . . 421 . . Electromagnetic 792 | . 95 . . . . . 697 . . . . . . . Impact . | . . . . . . . . . . . . . . . Slashing 165 | . . . . . . . 165 . . . . . . . Piercing 1978 | . . . . . . . . 562 . 716 . 185 . 515 Highest Corruption 8 | . . . . . . . 1 . 7 8 8 8 8 . Average Corruption 3 | . . . . . . . 1 . 7 7 8 8 8 . Corruption Purged . | . . . . . . . . . . . . . . . Effects 91 | . . . . . . . 18 . . 51 9 12 1 . Message Errors 20 | . . . . . . . 5 . . 13 . 2 . . Matter Fused 16 | . . . . . . . . . . 10 3 3 . . Heat Flow Errors 16 | . . . . . . . . . . 12 . 3 1 . Energy Discharges 15 | . . . . . . . 3 . . 9 2 1 . . Data Loss (minor) 14 | . . . . . . . 6 . . 2 3 3 . . Data Loss (major) 2 | . . . . . . . . . . 2 . . . . Targeting Errors 7 | . . . . . . . 3 . . 3 1 . . . Weapon Failures 1 | . . . . . . . 1 . . . . . . . Overload Shots . | . . . . . . . . . . . . . . . Overflow Damage 614 | . . . 52 . . 50 110 149 . 139 . 114 . . Projectiles 80 | . . . 16 . . 11 53 . . . . . . . Explosions 111 | . . . 36 . . 39 21 . . . . 15 . . Melee 423 | . . . . . . . 36 149 . 139 . 99 . . Knockbacks . | . . . . . . . . . . . . . . . Impact . | . . . . . . . . . . . . . . . Kinetic . | . . . . . . . . . . . . . . . Secondary . | . . . . . . . . . . . . . . . Self-Inflicted Damage 83 | . . . 49 . . . 34 . . . . . . . Shots 4 | . . . 1 . . . 3 . . . . . . . Rammed . | . . . . . . . . . . . . . . . Targets Rammed . | . . . . . . . . . . . . . . . Kicked . | . . . . . . . . . . . . . . . Crushed . | . . . . . . . . . . . . . . . Highest Temperature 363 | . 128 25 363 194 18 309 285 6 . 246 . 247 238 . Average Temperature 71 | . 42 7 67 61 13 106 68 6 . 80 . 105 117 . Received Heat Transfer 2199 | . 120 51 255 120 . 189 1215 6 . 12 9 . 90 132 Effects 6 | . . . 1 . . 2 2 . . . . . 1 . Energy Bleed 6 | . . . 1 . . 2 2 . . . . . 1 . Siege Activations . | . . . . . . . . . . . . . . . Robots Corrupted 2 | . . . . . . . 2 . . . . . . . Combat Hostiles 2 | . . . . . . . 2 . . . . . . . Parts Fried 7 | . . . . . . . 7 . . . . . . . Impact Corruptions . | . . . . . . . . . . . . . . . Robots Melted . | . . . . . . . . . . . . . . . Combat Hostiles . | . . . . . . . . . . . . . . . Parts Melted 7 | . . . 1 . . . 6 . . . . . . . Heat Transferred 7959 | . 124 37 2479 333 . 1221 3765 . . . . . . . Parts Sabotaged . | . . . . . . . . . . . . . . . Parts Stolen . | . . . . . . . . . . . . . . . Parts Stripped . | . . . . . . . . . . . . . . . Power Chain Reactions 4 | . . . . . . . 4 . . . . . . . Missiles Intercepted . | . . . . . . . . . . . . . . . Alert | -11 -10 -10 -9 -9 -9 -8 -8 -7 -7 -7 -7 -7 -7 -6 ------- Run | Scr Mat Min Mat Min Exi Min Mat Fac Was Fac Low Low Zio Pro Peak Influence 1002 | 5 201 73 637 180 . 259 1002 402 140 161 . . . . Initial 198 | . 3 . 25 15 . . 86 198 140 98 . . . . Average 186 | . 39 27 170 70 . 124 431 172 140 61 . . . . Maximum Alert Level 3 | . 1 . 2 . . 1 3 2 . . . . . . Low Security (%) 67 | 100 99 100 75 100 . 80 7 58 100 100 . . . . Level 1 21 | . . . 14 . . 19 54 38 . . . . . . Level 2 7 | . . . 9 . . . 17 2 . . . . . . Level 3 4 | . . . . . . . 20 . . . . . . . Level 4 . | . . . . . . . . . . . . . . . Level 5 . | . . . . . . . . . . . . . . . High Security . | . . . . . . . . . . . . . . . Max Security . | . . . . . . . . . . . . . . . Squads Dispatched 25 | . 1 . 7 . . . 12 3 . 2 . . . . Investigation 10 | . 1 . 5 . . . 3 . . 1 . . . . Extermination 3 | . . . . . . . . 2 . 1 . . . . Reinforcement 7 | . . . 2 . . . 4 1 . . . . . . Assault 2 | . . . . . . . 2 . . . . . . . Garrison 3 | . . . . . . . 3 . . . . . . . Intercept . | . . . . . . . . . . . . . . . Construction Impeded 1 | . . . . . . . . 1 . . . . . . Haulers Reinforced . | . . . . . . . . . . . . . . . Stealth | -11 -10 -10 -9 -9 -9 -8 -8 -7 -7 -7 -7 -7 -7 -6 --------- Run | Scr Mat Min Mat Min Exi Min Mat Fac Was Fac Low Low Zio Pro Distress Signals 9 | . 3 . 4 . . . 2 . . . . . . . Communications Jammed . | . . . . . . . . . . . . . . . Distress Signals . | . . . . . . . . . . . . . . . Times Spotted 274 | . 26 6 69 12 . 20 85 12 5 7 3 4 24 1 Peak Tracking Total 16 | . 4 2 5 3 . 3 6 3 5 4 3 2 16 1 Tactical Retreats 26 | . . . 3 3 . 3 6 3 . 3 2 . 3 . Traps | -11 -10 -10 -9 -9 -9 -8 -8 -7 -7 -7 -7 -7 -7 -6 ------- Run | Scr Mat Min Mat Min Exi Min Mat Fac Was Fac Low Low Zio Pro Traps Triggered 9 | . 1 . 3 . . . 1 3 . 1 . . . . Indirectly . | . . . . . . . . . . . . . . . Trap Hack Attempts . | . . . . . . . . . . . . . . . Triggered . | . . . . . . . . . . . . . . . Disarmed . | . . . . . . . . . . . . . . . Reprogrammed . | . . . . . . . . . . . . . . . Reused . | . . . . . . . . . . . . . . . Traps Extracted . | . . . . . . . . . . . . . . . Installed . | . . . . . . . . . . . . . . . Triggered 1 | . . . . . . . . . . . 1 . . . Machines | -11 -10 -10 -9 -9 -9 -8 -8 -7 -7 -7 -7 -7 -7 -6 ---------- Run | Scr Mat Min Mat Min Exi Min Mat Fac Was Fac Low Low Zio Pro Machines Disabled 7 | . 2 1 2 . . 1 1 . . . . . . . Max in Single Turn 1 | . 1 1 1 . . 1 1 . . . . . . . Garrison Access 3 | . . . . . . . 1 1 . 1 . . . . Machines Sabotaged . | . . . . . . . . . . . . . . . Garrisons Compromised . | . . . . . . . . . . . . . . . Overloaded Fab Kills . | . . . . . . . . . . . . . . . Fab Network Shutdowns 1 | . . . . . . . . 1 . . . . . . Hacking | -11 -10 -10 -9 -9 -9 -8 -8 -7 -7 -7 -7 -7 -7 -6 --------- Run | Scr Mat Min Mat Min Exi Min Mat Fac Was Fac Low Low Zio Pro Machines Accessed 66 | . 10 . 14 . 4 . 11 12 . 14 . 1 . . Terminals 39 | . 8 . 8 . . . 8 6 . 9 . . . . Fabricators 4 | . . . . . . . . 2 . 2 . . . . Repair Stations 5 | . 1 . 2 . . . . 1 . 1 . . . . Recycling Units 7 | . 1 . 2 . . . 1 2 . 1 . . . . Scanalyzers 3 | . . . 2 . . . 1 . . . . . . . Garrison Access 3 | . . . . . . . 1 1 . 1 . . . . Total Hacks 247 | . 27 . 65 . 4 . 45 47 . 58 . 1 . . Successful 186 | . 15 . 51 . 4 . 31 39 . 45 . 1 . . Failed 59 | . 11 . 14 . . . 14 7 . 13 . . . . Catastrophic 1 | . 1 . . . . . . . . . . . . . Database Lockouts 2 | . 1 . . . . . . 1 . . . . . . Manual 147 | . 19 . 38 . 1 . 32 28 . 29 . . . . Terminals 158 | . 24 . 39 . . . 33 27 . 35 . . . . Fabricators 24 | . . . . . . . . 10 . 14 . . . . Repair Stations 13 | . 2 . 3 . . . . 2 . 6 . . . . Recycling Units 15 | . 1 . 5 . . . 1 6 . 2 . . . . Scanalyzers 25 | . . . 18 . . . 7 . . . . . . . Garrison Access 7 | . . . . . . . 4 2 . 1 . . . . Terminal Hacks 72 | . 9 . 17 . 4 . 14 13 . 14 . 1 . . Record 4 | . . . . . 4 . . . . . . . . . Part Schematic 6 | . 1 . . . . . 1 2 . 2 . . . . Robot Analysis 13 | . 3 . 5 . . . 4 . . 1 . . . . Prototype ID Bank 6 | . . . 5 . . . 1 . . . . . . . Open Door 1 | . . . . . . . . . . . . 1 . . Branch Access Points 2 | . . . . . . . 1 . . 1 . . . . Machine Index 1 | . . . . . . . . . . 1 . . . . Terminal Index 3 | . 1 . . . . . . 1 . 1 . . . . Garrison Index 2 | . . . . . . . . 1 . 1 . . . . Alert Level 5 | . 1 . 1 . . . 1 2 . . . . . . Unreport Threat 12 | . 2 . 4 . . . 5 1 . . . . . . Locate Traps 4 | . 1 . . . . . . 1 . 2 . . . . Dispatch Records 1 | . . . . . . . . 1 . . . . . . Security Status 1 | . . . . . . . . 1 . . . . . . Patrol Status 1 | . . . . . . . . 1 . . . . . . Transport Status 1 | . . . 1 . . . . . . . . . . . Recall Investigation 1 | . . . . . . . . . . 1 . . . . Recall Extermination 1 | . . . . . . . . . . 1 . . . . Hauler Manifests 2 | . . . 1 . . . 1 . . . . . . . Zone Layout 5 | . . . . . . . . 2 . 3 . . . . Fabricator Hacks 14 | . . . . . . . . 7 . 7 . . . . Network Status 1 | . . . . . . . . . . 1 . . . . Load Schematic 4 | . . . . . . . . 2 . 2 . . . . Build 9 | . . . . . . . . 5 . 4 . . . . Repair Station Hacks 11 | . 1 . 2 . . . . 2 . 6 . . . . Scan Component 6 | . 1 . 1 . . . . 1 . 3 . . . . Repair 5 | . . . 1 . . . . 1 . 3 . . . . Recycling Unit Hacks 4 | . . . 3 . . . . 1 . . . . . . Report Inventory 3 | . . . 2 . . . . 1 . . . . . . Retrieve Components 1 | . . . 1 . . . . . . . . . . . Scanalyzer 25 | . . . 18 . . . 7 . . . . . . . Insert Component 11 | . . . 8 . . . 3 . . . . . . . Analyze 14 | . . . 10 . . . 4 . . . . . . . Garrison Access Hacks 2 | . . . . . . . . 1 . 1 . . . . Seal Access 2 | . . . . . . . . 1 . 1 . . . . Unauthorized Hacks 58 | . 5 . 11 . . . 10 15 . 17 . . . . Terminals 40 | . 4 . 9 . . . 8 9 . 10 . . . . Track 6 | . . . . . . . 1 2 . 3 . . . . Assimilate 7 | . 1 . . . . . 1 3 . 2 . . . . Botnet 21 | . 2 . 8 . . . 5 3 . 3 . . . . Operators 6 | . 1 . 1 . . . 1 1 . 2 . . . . Fabricators 8 | . . . . . . . . 3 . 5 . . . . Report 1 | . . . . . . . . . . 1 . . . . Prioritize 3 | . . . . . . . . 1 . 2 . . . . Siphon 4 | . . . . . . . . 2 . 2 . . . . Repair Stations . | . . . . . . . . . . . . . . . Recycling Units 9 | . 1 . 2 . . . 1 3 . 2 . . . . Recyclers 2 | . . . . . . . . 1 . 1 . . . . Mask 3 | . . . . . . . . 2 . 1 . . . . Tunnel 4 | . 1 . 2 . . . 1 . . . . . . . Scanalyzers . | . . . . . . . . . . . . . . . Garrison Access 1 | . . . . . . . 1 . . . . . . . Jam 1 | . . . . . . . 1 . . . . . . . Data Cores Recovered . | . . . . . . . . . . . . . . . Used . | . . . . . . . . . . . . . . . Hacking Detections 49 | . 8 . 13 . . . 10 8 . 10 . . . . Full Trace Events 2 | . . . 1 . . . . . . 1 . . . . Feedback Events . | . . . . . . . . . . . . . . . Feedback Blocked . | . . . . . . . . . . . . . . . Robot Schematics Acquired . | . . . . . . . . . . . . . . . Robots Built . | . . . . . . . . . . . . . . . Matter . | . . . . . . . . . . . . . . . Time . | . . . . . . . . . . . . . . . Total Robot Build Rating . | . . . . . . . . . . . . . . . Part Schematics Acquired 17 | . 1 . 8 . . . 4 2 . 2 . . . . Parts Built 9 | . . . . . . . . 5 . 4 . . . . Matter 1647 | . . . . . . . . 795 . 852 . . . . Time 614 | . . . . . . . . 424 . 190 . . . . Total Part Build Rating 50 | . . . . . . . . 30 . 20 . . . . Parts Repaired 5 | . . . 1 . . . . 1 . 3 . . . . Time 226 | . . . 40 . . . . 32 . 154 . . . . Parts Recycled . | . . . . . . . . . . . . . . . Recycled Matter . | . . . . . . . . . . . . . . . Retrieved Matter . | . . . . . . . . . . . . . . . Retrieved Components 10 | . . . 10 . . . . . . . . . . . Parts Scanalyzed 11 | . . . 8 . . . 3 . . . . . . . Part Schematics Acquired 11 | . . . 8 . . . 3 . . . . . . . Parts Damaged . | . . . . . . . . . . . . . . . Bothacking | -11 -10 -10 -9 -9 -9 -8 -8 -7 -7 -7 -7 -7 -7 -6 ------------ Run | Scr Mat Min Mat Min Exi Min Mat Fac Was Fac Low Low Zio Pro Used RIF Installer . | . . . . . . . . . . . . . . . Robots Hacked 8 | . . . 2 . . . 3 3 . . . . . . Non-combat 8 | . . . 2 . . . 3 3 . . . . . . Combat . | . . . . . . . . . . . . . . . Robot Hacks Applied 14 | . . . 4 . . . 7 3 . . . . . . find_chute 2 | . . . . . . . . 2 . . . . . . find_recycling 1 | . . . . . . . . 1 . . . . . . check_alert 11 | . . . 4 . . . 7 . . . . . . . Relay Couplers Released . | . . . . . . . . . . . . . . . Robots Rewired . | . . . . . . . . . . . . . . . Allies Hacked . | . . . . . . . . . . . . . . . Hacks Repelled . | . . . . . . . . . . . . . . . Allies | -11 -10 -10 -9 -9 -9 -8 -8 -7 -7 -7 -7 -7 -7 -6 -------- Run | Scr Mat Min Mat Min Exi Min Mat Fac Was Fac Low Low Zio Pro Total Allies 13 | . 1 1 . 3 . . 1 6 . 1 . . . . Largest Group 5 | . 1 2 . 3 2 2 1 5 . 2 1 . . . Highest-Rated Group 108 | . 10 41 . 40 24 24 26 108 . 26 26 . . . Highest-Rated Ally 31 | . 10 31 . 16 16 16 26 31 . 26 26 . . . Total Orders 32 | . 2 . . . . . 6 11 . 13 . . . . STAY 17 | . 1 . . . . . 3 6 . 7 . . . . FOLLOW 15 | . 1 . . . . . 3 5 . 6 . . . . Ally Attacks 29 | . . 9 . 5 . . . 15 . . . . . . Total Damage 474 | . . 187 . 56 . . . 231 . . . . . . Kills 4 | . . 2 . 1 . . . 1 . . . . . . Allies Corrupted . | . . . . . . . . . . . . . . . Allies Melted . | . . . . . . . . . . . . . . . Intel | -11 -10 -10 -9 -9 -9 -8 -8 -7 -7 -7 -7 -7 -7 -6 ------- Run | Scr Mat Min Mat Min Exi Min Mat Fac Was Fac Low Low Zio Pro Robot Analysis Total 13 | . 3 . 5 . . . 4 . . 1 . . . . Derelict Logs Recovered 9 | . . . . 1 . . . . . . 3 1 1 3 Drone Launches . | . . . . . . . . . . . . . . . Drone Recoveries . | . . . . . . . . . . . . . . . Exploration | -11 -10 -10 -9 -9 -9 -8 -8 -7 -7 -7 -7 -7 -7 -6 ------------- Run | Scr Mat Min Mat Min Exi Min Mat Fac Was Fac Low Low Zio Pro Turns Passed 19982 | 92 2070 1297 5139 999 816 1069 4188 1444 29 1736 252 348 224 279 Spaces Moved 19025 | 71 1545 751 2672 650 623 617 3131 3231 89 2855 702 867 658 563 Core 32 | 31 . . . . . . 1 . . . . . . . Treads 596 | 20 12 12 114 38 . 47 353 . . . . . . . Legs . | . . . . . . . . . . . . . . . Wheels 7778 | 20 1533 739 2558 612 623 570 1123 . . . . . . . Hover . | . . . . . . . . . . . . . . . Flight 10619 | . . . . . . . 1654 3231 89 2855 702 867 658 563 Fastest Speed 29 | 50 90 110 110 130 130 130 29 29 29 29 30 30 30 32 Average Speed 73 | 94 108 111 128 132 130 134 88 29 29 29 30 30 30 32 Slowest Speed 250 | 160 160 180 220 180 130 183 250 29 29 32 30 30 34 37 Overloaded Moves . | . . . . . . . . . . . . . . . Propulsion Burnouts . | . . . . . . . . . . . . . . . Robots Hopped 77 | . . . . . . . 35 17 . 23 1 . 1 . Cave-ins Triggered 1 | . . . . . . . . . . 1 . . . . Exploration Rate (%) 78 | 5 98 100 99 98 92 98 99 42 86 50 78 91 75 64 Regions Visited 14 Branch Regions 8 Pre-discovered Areas 6 | . 1 . 2 . . . 1 . . . 1 . 1 . Known Exits Taken 4 | . . . . . . . . . . 1 1 1 1 . Unknown Exits Taken 8 | 1 1 1 1 1 1 1 1 . . . . . . . Scrap Searched 15 | . . 1 . 1 . 1 . . . . 1 3 3 5 Spaces Dug 179 | . 9 . 14 . . 20 39 30 . 62 2 . . 3 Terrain Destroyed 300 | . 9 . 75 . . 31 58 30 . 62 2 30 . 3 Melee 100 | . 1 . . . . . 12 26 . 56 2 . . 3 Projectile 18 | . 8 . 2 . . . 2 . . 6 . . . . AOE 182 | . . . 73 . . 31 44 4 . . . 30 . . Terrain Rammed . | . . . . . . . . . . . . . . . Walls Destroyed . | . . . . . . . . . . . . . . . Machines Disabled . | . . . . . . . . . . . . . . . Actions | -11 -10 -10 -9 -9 -9 -8 -8 -7 -7 -7 -7 -7 -7 -6 --------- Run | Scr Mat Min Mat Min Exi Min Mat Fac Was Fac Low Low Zio Pro Total 23890 | 88 1801 1177 4177 746 630 750 4167 3662 91 3618 735 941 677 630 Wait 3481 | 3 126 384 1193 58 1 32 605 310 1 648 25 53 3 39 Move 18869 | 70 1544 750 2671 649 622 616 3067 3197 88 2812 699 866 655 563 Hop 65 | . . . . . . . 28 17 . 18 1 . 1 . Pick Up 175 | 4 20 4 47 . 1 1 46 28 1 14 2 1 2 4 Fast Attach 56 | 6 3 . 9 . . 3 10 7 . 12 . 2 3 1 Attach 70 | 1 3 . 13 . . 1 34 7 . 5 1 . 2 3 Detach 32 | 1 1 . 4 . . 1 12 6 . 6 . . 1 . Swap 290 | 1 25 12 75 22 2 36 77 15 . 11 2 8 3 1 Drop 195 | . 13 6 52 1 3 5 63 25 1 15 1 3 5 2 Fire 478 | 2 62 21 107 16 1 55 201 2 . 6 . 5 . . Melee 172 | . 4 . 6 . . . 24 42 . 70 4 3 2 17 Ram . | . . . . . . . . . . . . . . . Kick . | . . . . . . . . . . . . . . . Crush . | . . . . . . . . . . . . . . . Escape Stasis 1 | . . . . . . . . . . 1 . . . . Rewire 6 | . . . . . . . . 6 . . . . . . Trap . | . . . . . . . . . . . . . . . Miscellaneous . | . . . . . . . . . . . . . . . Route ------- -11/Scrapyard -10/Materials (discovered 4 exits: *Mat x3 / [*Min]) -10/Mines (discovered 2 exits: *Mat x2) -9/Materials (discovered 5 exits: *Mat x3 / [*Min x2]) -9/Mines (discovered 4 exits: *Mat x2 / *Exi / *Zio) -9/Exiles (discovered 2 exits: [*Min x2]) -8/Mines (discovered 2 exits: *Mat x2) -8/Materials (discovered 3 exits: *Fac x3) -7/Factory -7/Waste -7/Factory (discovered 5 exits: *Fac / *Sto x2 / *Low x2) -7/Lower Caves -7/Lower Caves (discovered 2 exits: *Fac / *Zio) -7/Zion -6/Proximity Caves (discovered 1 exit: Fac) History --------- Turn | Location | Event 6 | -11/Scrapyard | Discovered new exit (range 15) 93 | -11/Scrapyard | Entered Materials 314 | -10/Materials | Build established: Mutant 600 | -10/Materials | Discovered new exit (range 7) 713 | -10/Materials | Discovered new exit (range 8) 949 | -10/Materials | Discovered new exit (range 7) 1116 | -10/Materials | Discovered new exit (range 13) 1184 | -10/Materials | Central database locked down 2163 | -10/Materials | Entered Mines 2163 | -10/Mines | Accompanied by 1 ally 2166 | -10/Mines | Received a Mining Laser from a helpful Derelict 2172 | -10/Mines | Met a Derelict bent on vengeance 2341 | -10/Mines | Assembled infested the area 2893 | -10/Mines | Discovered new exit (range 9) 2969 | -10/Mines | Found a damaged Exp. Sensor Array with a note attached 2972 | -10/Mines | Found Prototype Device 2991 | -10/Mines | Discovered new exit (range 6) 3355 | -10/Mines | Received a Rocket Launcher from a helpful Derelict 3389 | -10/Mines | Core integrity fell below 50% 3460 | -10/Mines | Entered Materials 3460 | -9/Materials | Evolved 2 slots: Propulsion x1, Utility x1 3779 | -9/Materials | Build established: Hauler-Mutant 4053 | -9/Materials | Discovered new exit (range 12) 4562 | -9/Materials | Discovered new exit (range 16) 5003 | -9/Materials | Discovered new exit (range 16) 5246 | -9/Materials | Identified Exp. Sensor Array 5845 | -9/Materials | Repaired Exp. Sensor Array 6086 | -9/Materials | Discovered new exit (range 16) 6233 | -9/Materials | Discovered new exit (range 8) 8599 | -9/Materials | Entered Mines 8618 | -9/Mines | Core integrity fell below 50% 8678 | -9/Mines | Found a hidden stash of uninstalled traps 8736 | -9/Mines | A Derelict revealed a hidden shortcut to a safe place 8742 | -9/Mines | Discovered new exit (range 8) 8973 | -9/Mines | Discovered new exit (range 9) 9338 | -9/Mines | Deemed a non-threat by the Exiles lab entrance 9338 | -9/Mines | Discovered new exit (range 5) 9397 | -9/Mines | Assisted by bots powering up and referring to "LRC-V3" 9598 | -9/Mines | Entered Exiles 9598 | -9/Exiles | Found Exiles lab abandoned 9598 | -9/Exiles | Accompanied by 2 allies 9618 | -9/Exiles | Discovered new exit (range 14) 10186 | -9/Exiles | Discovered new exit (range 14) 10414 | -9/Exiles | Entered Mines 10414 | -8/Mines | Accompanied by 2 allies 10567 | -8/Mines | Discovered new exit (range 3) 10923 | -8/Mines | Discovered new exit (range 9) 11483 | -8/Mines | Entered Materials 11483 | -8/Materials | Evolved 2 slots: Utility x2 12107 | -8/Materials | Garrison activated, responded to threat 12157 | -8/Materials | Lost 3 parts (1n2w) 12275 | -8/Materials | Discovered new exit (range 16) 12321 | -8/Materials | Lost 5 parts (1p2n1u1w) 13156 | -8/Materials | Discovered new exit (range 9) 13965 | -8/Materials | Discovered new exit (range 10) 14035 | -8/Materials | Destroyed 8 combat bots 14283 | -8/Materials | First assault squad dispatched 14410 | -8/Materials | Destroyed 9 combat bots 15084 | -8/Materials | Build established: Hacker-Sprinter 15671 | -8/Materials | Entered Factory 15671 | -7/Factory | Evolved 2 slots: Utility x2 16153 | -7/Factory | Discovered new exit (range 4) 16153 | -7/Factory | Identified exit to Factory 16163 | -7/Factory | Allied Derelicts emerged from ambush trap array 16722 | -7/Factory | Central database locked down 16806 | -7/Factory | Fabricated Adv. Hacking Suite? 16808 | -7/Factory | Repaired Plasma Cutter 16877 | -7/Factory | Fabricated Adv. Hacking Suite? 16935 | -7/Factory | Fabricated Adv. Hacking Suite? 16958 | -7/Factory | Fabricated Adv. System Shield (x1) 17066 | -7/Factory | Fabricated Adv. System Shield? 17080 | -7/Factory | Local fabrication network quarantined 17115 | -7/Factory | Manually triggered Chute Trap 17115 | -7/Factory | Sucked down chute 17115 | -7/Factory | Entered Waste 17124 | -7/Waste | Spotted C-40 Crusher 17125 | -7/Waste | Spotted C-40 Crusher 17129 | -7/Waste | Spotted C-40 Crusher 17130 | -7/Waste | EMP discharged 17134 | -7/Waste | Spotted C-40 Crusher 17139 | -7/Waste | Spotted C-40 Crusher 17139 | -7/Waste | Discovered new exit (range 11) 17143 | -7/Waste | Identified exit to Factory 17144 | -7/Waste | Entered Factory 17165 | -7/Factory | 2 allies followed down the chute 17238 | -7/Factory | Repaired Adv. Plasma Cannon 17299 | -7/Factory | Repaired Imp. VTOL Module 17339 | -7/Factory | Repaired Lgt. Nuclear Core 17356 | -7/Factory | Discovered exit to Factory (range 12) 17433 | -7/Factory | Discovered new exit (range 11) 17439 | -7/Factory | Identified exit to Storage 17448 | -7/Factory | Identified exit to Lower Caves 18445 | -7/Factory | Crushed by falling debris 18562 | -7/Factory | Fabricated Exp. Sensor Array? 18650 | -7/Factory | Fabricated Biomechanical Wings? 18702 | -7/Factory | Fabricated Biomechanical Wings (x1) 18742 | -7/Factory | Fabricated Biomechanical Wings? 18880 | -7/Factory | Entered Lower Caves 18880 | -7/Lower Caves | Accompanied by 1 ally 18992 | -7/Lower Caves | Encountered a Warlord checkpoint 18993 | -7/Lower Caves | Discovered new exit (range 10) 18996 | -7/Lower Caves | Identified exit to Lower Caves 19044 | -7/Lower Caves | Learned Factory stockpile data 19132 | -7/Lower Caves | Entered another Lower Caves area 19136 | -7/Lower Caves | Discovered exit to Factory (range 10) 19184 | -7/Lower Caves | Learned 8 Factory zone layouts 19427 | -7/Lower Caves | Encountered a Warlord checkpoint 19454 | -7/Lower Caves | Discovered new exit (range 8) 19456 | -7/Lower Caves | Identified exit to Zion 19480 | -7/Lower Caves | Entered Zion 19494 | -7/Zion | System corruption cleaned by Quarantine Array 19507 | -7/Zion | Discovered new exit (range 15) 19512 | -7/Zion | Identified exit to Proximity Caves 19543 | -7/Zion | Learned location of Quarantine (-2) 19550 | -7/Zion | Learned location of 1 exit from Factory 19621 | -7/Zion | Attacked by Zionites 19657 | -7/Zion | Spotted 69-CTA(B) 19657 | -7/Zion | Spotted 29-1NR(B) 19671 | -7/Zion | 7V-RTL came to Zion's defense 19686 | -7/Zion | Found CR-A16's Pointy Stick 19704 | -7/Zion | Entered Proximity Caves 19730 | -6/Proximity Caves | Lost 6 parts (1p2n2u1w) 19783 | -6/Proximity Caves | Learned Factory emergency access door positions 19907 | -6/Proximity Caves | Spotted B-75 Beast 19965 | -6/Proximity Caves | Core integrity fell below 50% 19975 | -6/Proximity Caves | Core integrity fell below 20% 19983 | -6/Proximity Caves | Destroyed by B-75 Beast with Heavy Plasma Cannon Last Messages --------------- 19813_ Found Lgt. Nuclear Core. 19813_ Found Imp. Proton Missile Launcher. 19813_ Found 13 Matter. 19814_ Acquired Adv. Melee Analysis Suite. 19877_ Dropped Lgt. Deuterium Engine. 19877_ Acquired Lgt. Nuclear Core. 19895_ Searching scrap... 19895_ Found Arc Thrower. 19895_ Found Integration Mediator. 19895_ Found 19 Matter. 19952_ Knocked back. 19952_ Lgt. Deuterium Engine destroyed. 19958_ Imp. VTOL Module destroyed. 19958_ Knocked back. 19971_ Xenon Bombardment Thruster destroyed. 19971_ Lgt. Nuclear Core destroyed. 19971_ Adv. Hacking Suite destroyed. 19971_ Exp. Sensor Array destroyed. 19977_ Biomechanical Wings destroyed. 19979_ Dropped Med. Storage Unit. Map ----- +----------------------------------------------------+ | ?????????????????????????????????????????????????? | | ?????????????????????????????????????????????????? | | ?????????????????????????????????????????????????? | | ?????????????????????????????????????????????????? | | ?????????????????????????????????????????????????? | | ?????????????????????????????????????????????????? | | ????????????????????????????????????????????????? | | ???????????????????????????????????????????????? | | ?????????????????????? #?? ???????????????????? | | #???????????????????? #? ##?????????????????? | | ###????????????????? ? #"#????????????????? | | ??????????????????? # ####?????????????? | | ???????????????????? #"#?????????????? | | #????????????????????## ##????????????? | | #???????????????????? #????????????? | | #????????????????????? #????????????? | | ??????????????????????# #????????????? | | ????????###??????????## #????????????? | | ???###??# ?????????## #????????????? | | ??# ##? ?????????# ##???????????? | | ?# #? ????????## ##??????????? | | # #??# ??????### #??????????? | | #??# #??????#; ##?????????? | | ####### #???????# BB #?????????? | | ##??# ##?????## BB #?????????? | | ##????# [ ###???# %;!@! #?????????? | | #?????## % ##??# ;;#; #???????? | | ####???## ! ##?# ;# ;###;##### ???????? | | # ##???# #?###; ;#??##????? ???????? | | # #???## #???## ##??????????## ????????? | | # ##???### ##???# #??????????????###????????? | | ##????## ##??# #?????????????????????????? | | #?????## #### #?????????????????????????? | | ##?????### ## #?????????????????????????? | | ##??????# ## #?????????????????????????? | | ####???# ### ###???????????????????????? | | # ##??# #"#???????????????????????? | | ## #??# #????????????????????????? | | ?# ##?# ## #????????????????????????? | | ?# #?# ### ##????????????????????????? | | ## ##### ### #?####?????????????????????????? | | ##??# #??????????????????????????????? | | ## #??### ####???????????????????????????? | | ## #????## ##??????????????????????????? | | #?????## #??????????????????????????? | | ##?????## #??????????????????????????? | | ##?????# #??????????????????????????? | | #?????# ##??????????????????????????? | | ##?###?# ##???????????????????????????? | | ##?## #### #????????????????????????????? | +----------------------------------------------------+ Best States ------------- Heat Dissipation 45 Energy Generation 14 Energy Capacity 560 Matter Stores 300 Matter Capacity 300 Sight Range 16 Robot Scan Range 30 Terrain Scan Density 10 Jamming Range 8 Armor Coverage 225 Evasion (%) 64 Targeting Accuracy 5 Recoil Reduction 3 Offensive Hacking 60 Defensive Hacking 14 Item Schematics ----------------- Lrg. Storage Unit | -10/Materials | Hacked Hacking Suite | -9/Materials | Scanalyzed Exp. Sensor Array | -9/Materials | Scanalyzed Med. Storage Unit | -9/Materials | Scanalyzed Hcp. Storage Unit | -9/Materials | Scanalyzed Imp. Flight Unit | -9/Materials | Scanalyzed Datajack | -9/Materials | Scanalyzed Plasma Cutter | -9/Materials | Scanalyzed Hcp. Matter Pod | -9/Materials | Scanalyzed Adv. Signal Interpreter | -8/Materials | Scanalyzed Adv. Terrain Scanner | -8/Materials | Scanalyzed Imp. Utility Shielding | -8/Materials | Scanalyzed System Shield | -8/Materials | Hacked Adv. Hacking Suite | -7/Factory | Hacked Adv. System Shield | -7/Factory | Hacked Imp. Dynamic Insulation System | -7/Factory | Hacked Biomechanical Wings | -7/Factory | Hacked Robot Schematics ------------------ None Fabricated ------------ Adv. Hacking Suite | x1 | -7/Factory Adv. Hacking Suite | x1 | -7/Factory Adv. Hacking Suite | x1 | -7/Factory Adv. System Shield | x1 | -7/Factory Adv. System Shield | x1 | -7/Factory Exp. Sensor Array | x1 | -7/Factory Biomechanical Wings | x1 | -7/Factory Biomechanical Wings | x1 | -7/Factory Biomechanical Wings | x1 | -7/Factory Alien Tech Used ----------------- None Achievements -------------- None Challenges ------------ None Game ------ Seed EnergyLargeDevice Manual? 0 Play Time 04:18:02 Cumulative 426.3 hours Start 2021.10.04 @ 22:22:25 End 2021.10.07 @ 20:13:22 Sessions 9 Manual Loads 0 Difficulty Rogue Special Mode None Game No. 88 Rogue 52 Adventurer 4 Explorer 32 Win Type - Total 33 Types 14/6/4/2/2/3/1/0/1 Lore% 93 Gallery% 90 Achievement% 87 Wizard Run 0 Options --------- ASCII 0 Keyboard 1 Movement Vi Keybinds 0 Fullscreen 2 Font 24/Proggy Map View 76x50 Tactical HUD 1 Map Filters NONE Filters NONE Steam 1 RUN: c23bc112-5ea1-42c9-b060-b41cf558436e